bitfinex-derivatives/quotes_SOLF0:USTF0_20241017
["timestamp","ask_amount","ask_price","bid_price","bid_amount"]
[1729187570924,5.38,149.94,149.91,3.3357]
[1729187570925,8.7153,149.94,149.91,3.3357]
[1729187571116,3.3353,149.94,149.88,1.3845]
[1729187571317,3.3353,149.94,149.9,3.3359]
[1729187571831,3.3353,149.93,149.9,3.3359]
[1729187572523,5.38,149.96,149.9,3.3359]
[1729187572726,3.3352,149.94,149.9,3.3359]
[1729187572923,5.38,149.96,149.91,3.3356]
[1729187573127,3.3351,149.95,149.91,3.3356]
[1729187573332,5.38,149.96,149.91,3.3356]
[1729187574528,3.3352,149.94,149.91,3.3356]
[1729187574828,5.38,149.96,149.88,1.3845]
[1729187575022,3.335,149.95,149.92,3.3355]
[1729187576929,3.3349,149.95,149.92,3.3355]
[1729187579423,16.03,149.95,149.88,1.3845]
[1729187579626,16.03,149.95,149.87,3.41210933]
[1729187579821,3.3359,149.91,149.88,3.3363]
[1729187580019,3.3359,149.91,149.88,6.59346357]
[1729187580426,3.3358,149.92,149.89,3.3362]
[1729187580832,3.3358,149.92,149.89,6.63306067]
[1729187582138,3.335,149.95,149.92,3.3354]
[1729187582433,5.38,149.96,149.88,16.03]
[1729187582935,3.3355,149.93,149.9,3.3359]
[1729187583231,3.3355,149.93,149.88,19.35632672]
[1729187583435,3.3355,149.93,149.9,3.3359]
[1729187584135,3.3355,149.93,149.91,3.3357]
[1729187584428,3.3352,149.94,149.91,3.3357]
[1729187584834,3.3352,149.94,149.92,3.3356]
[1729187585325,3.3352,149.94,149.89,1.3504]
[1729187585525,16.03,149.95,149.88,19.35632672]
[1729187585723,16.03,149.95,149.88,3.32632672]
[1729187585936,16.03,149.93,149.86,6.8173]
[1729187586129,3.3358,149.91,149.88,3.3364]
[1729187586329,3.3358,149.91,149.88,6.6714012]
[1729187586526,16.03,149.93,149.88,3.3350012]
[1729187586731,16.03,149.93,149.86,1.4373]
[1729187588038,3.3359,149.91,149.88,3.3364]
[1729187588334,3.3359,149.91,149.88,6.7221135]
[1729187588533,3.3359,149.91,149.88,3.3364]
[1729187588934,16.03,149.93,149.86,1.4373]
[1729187589132,5.38,149.96,149.87,16.03]
[1729187589133,21.41,149.96,149.87,16.03]
[1729187589336,21.41,149.96,149.87,19.44363284]
[1729187589534,3.3355,149.93,149.9,3.3359]
[1729187593739,3.3358,149.91,149.87,3.41363284]
[1729187593940,16.03,149.94,149.86,1.4373]
[1729187594247,16.03,149.94,149.87,3.3366]
[1729187594248,3.3361,149.9,149.87,3.3366]
[1729187594436,3.3361,149.9,149.88,3.37080872]
[1729187594746,3.3361,149.9,149.87,3.3366]
[1729187595143,3.3361,149.9,149.87,6.68505676]
[1729187595445,3.3361,149.9,149.87,3.3366]
[1729187595840,3.3361,149.9,149.87,6.73911558]
[1729187596047,3.3361,149.9,149.87,3.3366]
[1729187596647,3.3361,149.9,149.88,3.40318293]
[1729187597345,3.3362,149.89,149.88,3.40318293]
[1729187597644,16.03,149.92,149.86,1.4373]
[1729187598842,3.3362,149.9,149.87,3.3366]
[1729187599043,16.03,149.92,149.86,1.4373]
[1729187599249,16.03,149.9,149.84,1.3504]
[1729187599445,16.03,149.9,149.83,6.7176]
[1729187599446,3.3367,149.87,149.83,1.3576]
[1729187599747,16.03,149.88,149.81,6.841]
[1729187600139,3.3368,149.87,149.84,3.3372]
[1729187600746,16.03,149.88,149.86,3.3368]
[1729187600950,3.3364,149.89,149.86,3.3368]
[1729187601148,16.03,149.9,149.81,6.841]
[1729187601549,3.3366,149.88,149.85,3.337]
[1729187601955,16.03,149.9,149.88,3.3364]
[1729187601956,3.3361,149.9,149.88,3.3364]
[1729187602160,5.36,149.92,149.88,6.71033586]
[1729187602461,5.36,149.92,149.88,3.3364]
[1729187602964,3.3361,149.9,149.87,3.3366]
[1729187603459,3.3361,149.9,149.87,6.63377965]
[1729187607071,3.3365,149.89,149.87,3.29717965]
[1729187607267,16.03,149.91,149.86,3.3368]
[1729187607573,3.3364,149.89,149.86,3.3368]
[1729187607868,3.3364,149.89,149.87,3.36681202]
[1729187608662,3.3364,149.89,149.87,6.70351202]
[1729187612169,3.3361,149.9,149.88,3.3365]
[1729187612373,65.38885013,232.5,149.87,3.36681202]
[1729187612559,65.38885013,232.5,149.89,16.03]
[1729187612560,11.5238076,150.01,149.89,16.03]
[1729187612871,16.03,149.98,149.89,19.34164244]
[1729187613365,5.36,150.0,149.91,3.3356]
[1729187613366,3.3353,149.94,149.91,3.3356]
[1729187613567,16.03,149.93,149.87,2.723]
[1729187613763,16.03,149.93,149.87,6.0883682]
[1729187613971,3.3359,149.91,149.89,3.3362]
[1729187614359,3.3359,149.91,149.87,6.0883682]
[1729187614772,3.3359,149.91,149.88,3.3363]
[1729187615074,16.03,149.95,149.87,6.0883682]
[1729187615285,5.36,149.96,149.89,16.03]
[1729187615469,5.36,149.96,149.92,3.3354]
[1729187615771,3.335,149.95,149.92,3.3354]
[1729187617669,5.36,149.97,149.9,3.336]
[1729187617670,3.3355,149.93,149.9,3.336]
[1729187617971,21.39,149.97,149.87,22.1183682]
[1729187618374,3.3353,149.94,149.91,3.3357]
[1729187621976,21.39,149.93,149.87,4.7346682]
[1729187622295,16.03,149.89,149.83,1.4515]
[1729187622576,3.3373,149.85,149.82,3.3377]
[1729187622772,16.03,149.87,149.81,2.8964]
[1729187622971,16.03,149.85,149.81,1.4325]
[1729187623571,16.03,149.85,149.79,3.34913018]
[1729187623767,3.3377,149.83,149.8,3.3381]
[1729187623973,3.3377,149.83,149.8,3.27093694]
[1729187624175,16.03,149.84,149.78,5.36]
[1729187624476,16.03,149.84,149.79,3.3383]
[1729187624672,16.03,149.84,149.8,3.25391993]
[1729187624880,3.3377,149.83,149.8,3.30684363]
[1729187625877,3.3377,149.83,149.79,3.3383]
[1729187626274,3.3377,149.83,149.79,6.62277302]
[1729187627275,3.3377,149.83,149.8,3.3382]
[1729187628268,3.3377,149.83,149.8,6.69969208]
[1729187628475,3.3377,149.83,149.8,3.3382]
[1729187629177,3.3377,149.83,149.8,6.7447702]
[1729187630483,3.3377,149.83,149.81,3.338]
[1729187630882,3.3377,149.83,149.81,6.60032022]
[1729187631686,21.39,149.87,149.81,3.26232022]
[1729187631873,21.39,149.87,149.78,21.39]
[1729187632288,3.3371,149.85,149.78,21.39]
[1729187633387,3.3371,149.85,149.82,3.3377]
[1729187633585,3.3371,149.85,149.82,6.65856884]
[1729187633981,16.03,149.85,149.78,5.36]
[1729187634181,16.03,149.83,149.78,5.36]
[1729187634382,21.39,149.87,149.78,21.39]
[1729187634583,21.39,149.87,149.79,16.03]
[1729187634777,21.39,149.87,149.79,19.32660684]
[1729187634987,16.03,149.87,149.79,19.32660684]
[1729187635181,3.337,149.86,149.79,19.32660684]
[1729187635783,3.337,149.86,149.83,3.3375]
[1729187637282,16.03,149.85,149.79,3.29660684]
[1729187637482,16.03,149.85,149.77,8.1858]
[1729187637787,3.3377,149.83,149.8,3.3381]
[1729187637981,3.3377,149.83,149.8,6.64873211]
[1729187638182,16.03,149.85,149.8,3.31063211]
[1729187638383,16.03,149.87,149.77,8.1858]
[1729187638688,5.36,149.87,149.79,16.03]
[1729187638887,5.36,149.87,149.79,19.32193741]
[1729187639585,3.337,149.86,149.83,3.3374]
[1729187640481,3.3366,149.88,149.85,3.3369]
[1729187640685,16.03,149.91,149.81,21.39]
[1729187640686,5.36,149.89,149.82,1.4108]
[1729187641391,3.3367,149.88,149.84,3.3373]
[1729187642392,3.3367,149.88,149.82,1.4108]
[1729187642586,3.3367,149.88,149.85,3.337]
[1729187642789,3.3367,149.88,149.83,1.4426]
[1729187642984,8.6959,149.91,149.88,3.3364]
[1729187643191,5.36,149.93,149.88,3.38706941]
[1729187643394,5.36,149.93,149.87,16.03]
[1729187643592,3.3357,149.92,149.89,3.3361]
[1729187645686,3.3361,149.9,149.87,6.59917425]
[1729187645892,16.03,149.92,149.85,5.36]
[1729187646391,3.3361,149.9,149.87,3.3366]
[1729187646593,3.3361,149.9,149.87,6.69373535]
[1729187646786,3.3359,149.91,149.87,3.3366]
[1729187646988,16.03,149.92,149.87,6.65235927]
[1729187647290,3.3359,149.91,149.89,3.3361]
[1729187647491,5.36,149.93,149.89,3.3361]
[1729187648086,3.3356,149.92,149.9,3.40407744]
[1729187649095,3.3356,149.92,149.89,3.3361]
[1729187649696,3.3356,149.92,149.89,6.7034704]
[1729187651090,1.3906,149.97,149.89,3.3673704]
[1729187651292,5.36,149.96,149.88,16.03]
[1729187651587,5.36,149.96,149.89,1.3648]
[1729187651787,3.335,149.95,149.92,3.3353]
[1729187652097,5.36,149.96,149.89,1.3648]
[1729187652392,3.3353,149.94,149.91,3.3357]
[1729187654597,16.03,149.95,149.89,1.3648]
[1729187654795,3.3357,149.92,149.88,3.39517466]
[1729187654993,16.03,149.95,149.86,16.03]
[1729187655189,3.336,149.91,149.88,3.3363]
[1729187655390,3.336,149.91,149.89,3.33711398]
[1729187655997,3.336,149.91,149.85,6.7207]
[1729187657391,3.336,149.91,149.88,3.3363]
[1729187657592,3.336,149.91,149.89,3.27705261]
[1729187658598,3.3357,149.92,149.89,6.61315261]
[1729187658795,16.03,149.93,149.89,6.61315261]
[1729187659801,21.39,149.93,149.87,3.3366]
[1729187660106,21.39,149.93,149.87,6.61698939]
[1729187660400,3.3357,149.92,149.87,6.61698939]
[1729187660704,21.39,149.93,149.87,6.61698939]
[1729187661498,3.3362,149.9,149.87,6.61698939]
[1729187665616,3.3363,149.89,149.87,6.61698939]
[1729187665901,16.03,149.91,149.85,4.6977]
[1729187666106,16.03,149.91,149.85,1.3607]
[1729187666307,3.3365,149.88,149.85,1.3607]
[1729187666502,16.03,149.91,149.85,4.6978]
[1729187666800,3.3368,149.87,149.85,1.3607]
[1729187667206,16.03,149.91,149.85,1.3607]
[1729187667601,16.03,149.95,149.86,16.03]
[1729187667902,9.2035,149.99,149.9,16.03]
[1729187667903,32.89563509,149.99,149.9,16.03]
[1729187668103,5.36,149.97,149.9,19.43742142]
[1729187668611,3.3352,149.94,149.9,19.43742142]
[1729187669000,3.3352,149.94,149.91,3.3357]
[1729187669406,5.36,149.97,149.9,19.43742142]
[1729187670304,3.3351,149.94,149.91,3.3356]
[1729187670703,3.3351,149.94,149.9,19.43742142]
[1729187670901,3.3351,149.94,149.91,3.3357]
[1729187671299,3.3353,149.93,149.91,3.3357]
[1729187671509,16.03,149.95,149.9,3.40742142]
[1729187671802,16.03,149.95,149.85,1.3607]
[1729187671803,3.3364,149.89,149.85,6.7207]
[1729187672001,3.3364,149.89,149.86,3.3367]
[1729187672412,3.3364,149.89,149.87,3.3367]
[1729187672598,3.3364,149.89,149.87,6.71051122]
[1729187673115,21.39,149.91,149.85,4.6977]
[1729187673412,16.03,149.89,149.85,3.337]
[1729187674516,3.3366,149.88,149.85,3.337]
[1729187679104,3.3367,149.87,149.85,3.337]
[1729187680111,3.3366,149.88,149.85,3.337]
[1729187683002,16.03,149.9,149.85,3.337]
[1729187685313,3.3366,149.88,149.85,3.337]
[1729187686013,3.3369,149.86,149.82,1.4108]
[1729187686310,16.03,149.86,149.8,2.8457]
[1729187686508,3.3375,149.84,149.81,3.3379]
[1729187687314,3.3375,149.84,149.82,3.3377]
[1729187688120,3.3372,149.85,149.82,3.3377]
[1729187688610,8.6768,149.87,149.8,2.8457]
[1729187689313,8.6768,149.87,149.84,3.3372]
[1729187689718,3.337,149.86,149.84,3.3372]
[1729187692621,5.34,149.87,149.8,2.8457]
[1729187692916,3.3373,149.85,149.8,2.8457]
[1729187693619,3.337,149.86,149.83,3.3375]
[1729187696718,5.34,149.87,149.8,2.8457]
[1729187696922,3.3369,149.86,149.84,3.3372]
[1729187700021,10.25,149.85,149.81,10.25]
[1729187700230,10.25,149.84,149.8,13.0957]
[1729187700724,13.5875,149.84,149.81,3.3379]
[1729187701026,10.25,149.84,149.8,13.0957]
[1729187701227,3.3378,149.82,149.79,3.29193741]
[1729187701419,3.3378,149.82,149.79,3.3384]
[1729187701618,3.3378,149.82,149.8,3.34757546]
[1729187702417,3.3378,149.82,149.79,3.3384]
[1729187702726,13.5877,149.83,149.8,3.3381]
[1729187702926,3.3377,149.83,149.8,3.3381]
[1729187703625,13.5877,149.83,149.8,6.69268832]
[1729187704023,3.338,149.81,149.8,3.35458832]
[1729187704330,10.25,149.81,149.75,10.25]
[1729187704540,13.5886,149.79,149.76,3.3389]
[1729187704919,13.5886,149.79,149.74,18.4313]
[1729187704920,10.25,149.78,149.74,13.0913]
[1729187705120,10.25,149.76,149.74,1.4767]
[1729187705326,27.30430715,149.88,149.7,109.55675713]
[1729187705327,10.25,149.75,149.7,126.57295713]
[1729187705520,10.25,149.75,149.7,11.6562]
[1729187705926,16.05,149.77,149.7,1.4062]
[1729187706131,16.05,149.77,149.7,4.73752745]
[1729187706429,3.3395,149.75,149.7,1.4062]
[1729187706631,5.36,149.76,149.7,20.85968617]
[1729187706829,5.36,149.76,149.7,17.4562]
[1729187707331,8.6991,149.76,149.7,20.77316252]
[1729187707636,8.6991,149.76,149.7,3.31696252]
[1729187707637,16.05,149.75,149.7,3.31696252]
[1729187707839,3.3404,149.71,149.67,3.341]
[1729187708038,3.3404,149.71,149.67,3.34134949]
[1729187708241,3.3404,149.71,149.66,2.761]
[1729187708830,3.3404,149.71,149.67,3.341]
[1729187709529,3.3404,149.71,149.68,3.31161294]
[1729187709935,19.3899,149.73,149.69,3.3405]
[1729187710237,3.3399,149.73,149.69,3.3405]
[1729187710439,16.05,149.77,149.68,19.31416576]
[1729187710636,8.6993,149.76,149.68,19.31416576]
[1729187710843,8.6993,149.76,149.69,5.36]
[1729187711739,8.6993,149.76,149.7,16.05]
[1729187712337,3.3394,149.75,149.72,3.3399]
[1729187712838,3.3402,149.72,149.68,3.26416576]
[1729187713049,3.3402,149.72,149.66,8.101]
[1729187713342,3.3402,149.72,149.68,3.3408]
[1729187713538,3.3404,149.71,149.66,10.07566629]
[1729187713738,16.05,149.71,149.66,3.34936629]
[1729187713936,16.05,149.71,149.65,1.3576]
[1729187713937,5.34,149.72,149.65,1.3576]
[1729187714543,5.34,149.72,149.67,3.3409]
[1729187714937,3.3404,149.71,149.67,3.3409]
[1729187715642,3.34,149.73,149.66,16.05]
[1729187715845,5.34,149.77,149.7,16.05]
[1729187716243,5.34,149.77,149.74,3.3395]
[1729187716244,8.6789,149.77,149.74,3.3395]
[1729187716445,5.34,149.77,149.7,16.05]
[1729187716849,3.3394,149.75,149.72,3.3399]
[1729187717145,5.34,149.77,149.7,16.05]
[1729187717345,3.3395,149.75,149.72,3.34]
[1729187717542,3.3395,149.75,149.7,16.05]
[1729187717543,21.39,149.77,149.68,18.9666]
[1729187717748,21.39,149.77,149.68,1.4819]
[1729187717749,3.3406,149.7,149.68,1.4819]
[1729187717945,16.05,149.71,149.65,3.31496072]
[1729187718136,5.34,149.7,149.62,21.39]
[1729187718341,5.34,149.7,149.62,16.05]
[1729187718539,16.05,149.69,149.62,16.05]
[1729187718745,16.05,149.69,149.61,5.34]
[1729187719045,3.3412,149.67,149.64,3.3418]
[1729187719241,3.3412,149.67,149.64,6.63035389]
[1729187719953,3.3412,149.67,149.64,3.3418]
[1729187720249,3.3417,149.65,149.63,3.26783543]
[1729187720453,16.05,149.68,149.63,3.42255553]
[1729187720657,5.34,149.66,149.63,3.42255553]
[1729187720843,3.3418,149.65,149.61,3.3423]
[1729187721046,5.34,149.66,149.61,3.3423]
[1729187721246,21.39,149.66,149.6,2.9288]
[1729187721843,3.3418,149.64,149.6,2.9288]
[1729187722249,3.3418,149.65,149.61,3.3423]
[1729187723152,21.39,149.66,149.6,1.4581]
[1729187723743,3.3419,149.64,149.6,3.3425]
[1729187724150,3.3419,149.64,149.61,3.3425]
[1729187724651,21.39,149.66,149.58,16.05]
[1729187724948,5.34,149.66,149.58,16.05]
[1729187725353,8.6815,149.66,149.62,3.3421]
[1729187725555,5.34,149.66,149.58,16.05]
[1729187725751,5.34,149.66,149.6,3.3426]
[1729187726059,5.34,149.66,149.6,16.05]
[1729187727058,5.34,149.66,149.65,3.3416]
[1729187728254,19.3909,149.68,149.65,3.3416]
[1729187728553,5.34,149.67,149.65,3.3416]
[1729187730251,5.34,149.67,149.64,3.39049812]
[1729187730453,5.34,149.67,149.66,3.3414]
[1729187730855,5.34,149.69,149.67,3.341]
[1729187731256,16.05,149.72,149.63,16.05]
[1729187731562,5.34,149.71,149.65,16.05]
[1729187732154,5.34,149.71,149.69,3.3405]
[1729187732962,72.14,149.74,149.67,16.05]
[1729187733165,5.34,149.73,149.69,16.05]
[1729187733359,3.339,149.77,149.74,3.3394]
[1729187733659,5.34,149.76,149.74,3.3394]
[1729187734361,8.6793,149.76,149.73,3.3397]
[1729187734958,3.3391,149.77,149.74,3.3395]
[1729187735152,8.6791,149.77,149.74,3.3395]
[1729187736064,5.34,149.77,149.75,3.3392]
[1729187736756,3.3386,149.79,149.76,3.339]
[1729187736957,5.34,149.78,149.76,3.339]
[1729187737659,8.6787,149.78,149.75,3.3393]
[1729187739763,21.39,149.78,149.7,2.8419]
[1729187739971,16.05,149.76,149.7,2.8419]
[1729187740273,3.3394,149.75,149.72,3.3399]
[1729187743564,16.05,149.76,149.71,3.28423943]
[1729187743772,16.05,149.76,149.71,3.3402]
[1729187743963,16.05,149.76,149.71,6.65003726]
[1729187744268,16.05,149.76,149.71,3.3402]
[1729187744964,3.3395,149.75,149.71,3.3402]
[1729187745165,5.34,149.74,149.71,3.3402]
[1729187745768,8.6797,149.74,149.71,3.3402]
[1729187747272,5.34,149.74,149.72,3.3399]
[1729187749866,8.6796,149.74,149.72,3.3399]
[1729187751473,5.34,149.74,149.72,3.3399]
[1729187753875,3.34,149.73,149.7,3.3403]
[1729187754171,3.34,149.73,149.69,1.4322]
[1729187754369,8.6796,149.74,149.71,3.3401]
[1729187755577,3.3398,149.73,149.71,3.3401]
[1729187756680,3.3405,149.7,149.64,2.8313]
[1729187756865,16.05,149.68,149.63,3.34157575]
[1729187757070,16.05,149.65,149.6,1.3717]
[1729187757375,16.05,149.65,149.55,3.33567034]
[1729187757376,16.05,149.61,149.55,3.33567034]
[1729187757674,3.3428,149.6,149.56,3.3434]
[1729187757977,21.39,149.61,149.56,3.30904628]
[1729187758172,21.39,149.61,149.57,3.3433]
[1729187759472,16.05,149.59,149.54,6.24256993]
[1729187760269,19.393,149.59,149.55,3.3437]
[1729187760872,3.3421,149.63,149.59,3.3427]
[1729187761078,5.34,149.62,149.54,22.29256993]
[1729187761574,5.34,149.62,149.59,3.3428]
[1729187761782,5.34,149.62,149.54,22.29256993]
[1729187762175,8.6823,149.62,149.58,3.343]
[1729187762971,5.34,149.62,149.59,3.3429]
[1729187763774,5.34,149.64,149.61,3.3423]
[1729187763971,5.34,149.64,149.56,16.05]
[1729187764777,3.3417,149.65,149.6,3.3425]
[1729187764979,8.6818,149.64,149.6,3.3425]
[1729187766571,3.3423,149.62,149.59,3.3429]
[1729187766767,16.05,149.61,149.54,6.24256993]
[1729187767075,5.34,149.6,149.54,6.24256993]
[1729187767275,5.34,149.6,149.54,9.58646993]
[1729187767474,16.05,149.59,149.54,6.24256993]
[1729187768176,3.3433,149.58,149.54,9.58636993]
[1729187768576,16.05,149.59,149.54,4.77846993]
[1729187769174,16.05,149.57,149.45,1.365]
[1729187769379,3.3439,149.55,149.52,3.3445]
[1729187769579,3.3439,149.55,149.53,3.32586394]
[1729187770777,3.3439,149.55,149.52,3.3445]
[1729187770976,19.3939,149.55,149.51,3.30534722]
[1729187771174,19.3939,149.55,149.51,3.3446]
[1729187771479,19.3939,149.55,149.52,3.3839504]
[1729187771680,19.3939,149.55,149.51,3.3446]
[1729187771883,19.3939,149.55,149.52,3.38461936]
[1729187772078,19.3939,149.55,149.51,3.3446]
[1729187772484,19.3939,149.55,149.51,6.76601234]
[1729187772683,16.05,149.55,149.52,3.3444]
[1729187772884,16.05,149.55,149.47,5.34]
[1729187773381,16.05,149.55,149.51,3.3445]
[1729187773586,16.05,149.55,149.51,3.37636596]
[1729187773790,16.05,149.55,149.47,5.34]
[1729187773979,19.3938,149.55,149.51,3.3445]
[1729187774287,19.3938,149.55,149.51,6.69979503]
[1729187774489,19.3938,149.55,149.51,3.3445]
[1729187775182,3.344,149.54,149.51,3.26733225]
[1729187775484,16.05,149.53,149.51,3.26733225]
[1729187775682,16.05,149.53,149.46,2.7571]
[1729187776077,5.34,149.52,149.46,2.7571]
[1729187776977,5.34,149.52,149.43,21.39]
[1729187777688,5.34,149.52,149.45,16.05]
[1729187778484,21.39,149.53,149.45,16.05]
[1729187779082,5.34,149.54,149.47,16.05]
[1729187779279,5.34,149.55,149.49,16.05]
[1729187779483,5.34,149.56,149.5,2.7664]
[1729187780188,5.34,149.56,149.51,3.37659491]
[1729187780486,16.05,149.55,149.51,3.37659491]
[1729187781183,3.3442,149.54,149.51,3.37659491]
[1729187781785,3.3442,149.54,149.51,6.72129491]
[1729187781982,16.05,149.55,149.51,3.37659491]
[1729187782283,3.3444,149.53,149.49,3.345]
[1729187782480,3.3444,149.53,149.48,1.4021]
[1729187782676,3.3442,149.54,149.48,1.4021]
[1729187783387,3.3441,149.54,149.48,1.4021]
[1729187784496,3.3443,149.53,149.5,3.3448]
[1729187784685,3.3443,149.53,149.51,3.33834898]
[1729187785184,16.05,149.55,149.51,3.33834898]
[1729187785392,3.3445,149.52,149.49,3.3449]
[1729187785589,16.05,149.55,149.46,16.05]
[1729187786089,3.3443,149.53,149.46,16.05]
[1729187786489,16.05,149.55,149.46,16.05]
[1729187787490,19.3939,149.55,149.46,16.05]
[1729187787688,16.05,149.55,149.46,16.05]
[1729187788284,16.05,149.55,149.45,1.3976]
[1729187788594,5.34,149.56,149.45,1.3976]
[1729187788595,16.05,149.53,149.45,1.3976]
[1729187788894,3.3449,149.51,149.47,3.3454]
[1729187789191,5.34,149.52,149.45,1.3976]
[1729187789693,3.3449,149.5,149.47,3.3456]
[1729187790894,19.3948,149.51,149.48,3.3453]
[1729187791485,19.3947,149.51,149.48,3.3453]
[1729187791695,3.3447,149.51,149.48,3.3453]
[1729187791891,5.34,149.52,149.45,1.3976]
[1729187792293,3.3448,149.51,149.48,3.3453]
[1729187793396,19.3948,149.51,149.48,3.3453]
[1729187795394,19.3948,149.51,149.45,1.3976]
[1729187795395,3.3453,149.49,149.46,3.3457]
[1729187795595,16.05,149.51,149.45,1.3976]
[1729187796195,3.3452,149.5,149.47,3.3455]
[1729187796403,16.05,149.51,149.45,1.3976]
[1729187796598,16.05,149.49,149.44,1.4009]
[1729187797104,3.3455,149.48,149.45,3.3459]
[1729187798194,16.05,149.49,149.43,3.36020753]
[1729187798195,3.3456,149.47,149.44,3.3462]
[1729187798897,3.3456,149.47,149.45,3.32518815]
[1729187799700,3.3456,149.47,149.44,3.3462]
[1729187800096,3.3455,149.48,149.44,3.37025133]
[1729187800298,16.05,149.51,149.42,16.05]
[1729187800903,16.05,149.51,149.42,19.37608203]
[1729187801107,3.345,149.5,149.47,3.3456]
[1729187803603,16.05,149.51,149.47,3.3456]
[1729187803898,16.05,149.49,149.46,3.3457]
[1729187804201,3.3454,149.48,149.45,3.42067262]
[1729187804402,16.05,149.49,149.45,3.3459]
[1729187804704,16.05,149.49,149.45,6.67354317]
[1729187804903,3.3455,149.48,149.45,6.67354317]
[1729187805902,3.3456,149.47,149.45,6.67354317]
[1729187808699,16.05,149.49,149.45,3.32764317]
[1729187808900,16.05,149.49,149.4,21.39]
[1729187808901,3.3455,149.48,149.46,3.3457]
[1729187809410,3.3455,149.48,149.46,6.65750216]
[1729187810503,3.3455,149.48,149.46,3.3457]
[1729187811103,8.6855,149.48,149.46,3.3457]
[1729187811702,8.6855,149.48,149.45,6.70857059]
[1729187812208,3.3457,149.47,149.45,6.70857059]
[1729187816207,13.6257,149.47,149.45,6.70857059]
[1729187820207,3.3462,149.45,149.43,3.3465]
[1729187820413,10.28,149.44,149.43,3.3465]
[1729187820810,5.34,149.48,149.41,10.28]
[1729187821020,10.28,149.46,149.44,3.3461]
[1729187822623,3.3457,149.47,149.44,3.3461]
[1729187822821,13.6257,149.47,149.45,3.346]
[1729187823123,13.6257,149.47,149.42,10.28]
[1729187823529,13.6257,149.47,149.44,3.3461]
[1729187823821,10.28,149.46,149.41,10.28]
[1729187824029,10.28,149.46,149.44,3.3461]
[1729187825720,3.3461,149.45,149.42,3.3466]
[1729187826225,13.6261,149.45,149.42,3.3466]
[1729187826425,13.6261,149.45,149.43,3.3465]
[1729187827026,13.6261,149.45,149.42,3.3466]
[1729187827221,10.28,149.45,149.42,3.3466]
[1729187827537,3.3463,149.44,149.39,14.94731691]
[1729187827739,3.3463,149.44,149.41,3.3468]
[1729187828522,5.34,149.46,149.39,14.94731691]
[1729187828722,6.6887,149.53,149.4,10.28]
[1729187828930,5.34,149.52,149.44,10.28]
[1729187829124,10.28,149.49,149.44,10.28]
[1729187829937,3.3454,149.48,149.45,3.3459]
[1729187830231,2.8742,149.55,149.45,10.28]
[1729187830433,13.6249,149.51,149.48,3.3453]
[1729187830634,13.6249,149.51,149.47,10.28]
[1729187830829,13.6249,149.51,149.47,13.66910878]
[1729187831333,13.6249,149.51,149.47,17.01450878]
[1729187832637,13.6249,149.51,149.48,3.3454]
[1729187833836,13.6249,149.5,149.47,6.73460878]
[1729187834038,18.9449,149.5,149.47,6.73460878]
[1729187835238,15.6,149.5,149.45,10.28]
[1729187835439,13.6252,149.49,149.46,3.3457]